fUSD/lending_fUSD_20250911
["ID","MTS","AMOUNT","RATE_DAILY","PERIOD"]
[384825239,1757575661294,-400.0,0.00029975,7]
[384825240,1757575661322,-400.0,0.00029975,7]
[384825241,1757575661351,-400.0,0.00029975,7]
[384825242,1757575661380,-400.0,0.00029975,7]
[384825243,1757575661409,-400.0,0.00029975,7]
[384825244,1757575661437,-402.9333517,0.00029975,7]
[384825245,1757575661464,-516.84,0.00029975,7]
[384825246,1757575661492,-400.0,0.00029975,7]
[384825247,1757575661521,-400.0,0.00029975,7]
[384825248,1757575661548,-1019.67,0.00029975,7]
[384825249,1757575661579,-400.0,0.00029975,7]
[384825250,1757575661611,-4017.8,0.00029975,5]
[384825251,1757575661639,-400.0,0.00029975,7]
[384825252,1757575661667,-400.0,0.00029975,7]
[384825253,1757575661694,-400.0,0.00029975,7]
[384825254,1757575661722,-400.0,0.00029975,7]
[384825255,1757575661751,-400.0,0.00029975,7]
[384825256,1757575661779,-400.0,0.00029975,7]
[384825257,1757575661807,-1481.48,0.00029975,7]
[384825258,1757575662145,-400.0,0.00029975,7]
[384825259,1757575662173,-400.67,0.00029975,7]
[384825260,1757575662204,-400.0,0.00029975,7]
[384825261,1757575662231,-400.0,0.00029975,7]
[384825262,1757575662257,-400.0,0.00029975,7]
[384825263,1757575662299,-400.0,0.00029975,7]
[384825264,1757575662332,-400.0,0.00029975,7]
[384825265,1757575662361,-400.0,0.00029975,7]
[384825266,1757575662391,-400.0,0.00029975,7]
[384825267,1757575662421,-689.71,0.00029975,7]
[384825268,1757575662450,-400.0,0.00029975,7]
[384825269,1757575662479,-400.0,0.00029975,7]
[384825270,1757575662510,-400.0,0.00029975,7]
[384825271,1757575662540,-400.0,0.00029975,7]
[384825272,1757575662570,-400.0,0.00029975,7]
[384825273,1757575662599,-632.22,0.00029975,7]
[384825274,1757575662628,-400.0,0.00029975,7]
[384825275,1757575662657,-400.0,0.00029975,7]
[384825276,1757575662685,-400.0,0.00029975,7]
[384825277,1757575662712,-1589.17,0.00029975,7]
[384825278,1757575662740,-400.0,0.00029975,7]
[384825279,1757575662768,-400.0,0.00029975,7]
[384825280,1757575662797,-400.0,0.00029975,7]
[384825281,1757575662825,-400.0,0.00029975,7]
[384825282,1757575662854,-400.0,0.00029975,7]
[384825283,1757575662882,-400.0,0.00029975,7]
[384825284,1757575662911,-481.26,0.00029975,7]
[384825285,1757575662939,-400.0,0.00029975,7]
[384825286,1757575662967,-400.0,0.00029975,7]
[384825287,1757575662996,-400.0,0.00029975,7]
[384825288,1757575663025,-596.87,0.00029975,7]
[384825289,1757575663054,-400.0,0.00029975,7]
[384825290,1757575663083,-400.0,0.00029975,7]
[384825291,1757575663112,-400.0,0.00029975,7]
[384825292,1757575663142,-400.0,0.00029975,7]
[384825293,1757575663170,-400.0,0.00029975,7]
[384825294,1757575663202,-406.61091908,0.00029975,7]
[384825295,1757575663231,-400.0,0.00029975,7]
[384825296,1757575663260,-412.44861884,0.00029975,7]
[384825297,1757575663288,-406.78050179,0.00029975,7]
[384825298,1757575663317,-400.0,0.00029975,7]
[384825299,1757575663346,-400.0,0.00029975,7]
[384825300,1757575663376,-417.71762592,0.00029975,7]
[384825301,1757575663406,-405.6730061,0.00029975,7]
[384825302,1757575663436,-400.0,0.00029975,7]
[384825303,1757575663465,-150.0,0.00029975,2]
[384825304,1757575663497,-400.0,0.00029975,7]
[384825305,1757575663527,-405.74706556,0.00029975,7]
[384825306,1757575663557,-400.0,0.00029975,7]
[384825307,1757575663586,-406.59962702,0.00029975,7]
[384825308,1757575663615,-400.0,0.00029975,7]
[384825309,1757575663644,-400.0,0.00029975,7]
[384825310,1757575663673,-400.0,0.00029975,7]
[384825311,1757575663700,-400.0,0.00029975,7]
[384825312,1757575663729,-402.86888543,0.00029975,7]
[384825313,1757575663759,-754.72,0.00029975,7]
[384825314,1757575663788,-400.0,0.00029975,7]
[384825315,1757575663818,-400.0,0.00029975,7]
[384825316,1757575663846,-403.7754155,0.00029975,7]
[384825317,1757575663875,-400.0,0.00029975,7]
[384825318,1757575663904,-400.0,0.00029975,7]
[384825319,1757575663932,-403.26539175,0.00029975,7]
[384825320,1757575663961,-836.95,0.00029975,7]
[384825321,1757575663993,-400.0,0.00029975,7]
[384825322,1757575664022,-498.5665365,0.00029975,7]
[384825323,1757575664054,-400.0,0.00029975,7]
[384825324,1757575664083,-391.04636859,0.00029975,7]
[384825325,1757575664112,-400.0,0.00029975,7]
[384825326,1757575664140,-466.94,0.00029975,7]
[384825327,1757575664168,-514.91,0.00029975,7]
[384825328,1757575664198,-401.99327088,0.00029975,7]
[384825329,1757575664225,-400.0,0.00029975,7]
[384825330,1757575664254,-400.0,0.00029975,7]
[384825331,1757575664282,-400.0,0.00029975,7]
[384825332,1757575664310,-400.0,0.00029975,7]
[384825333,1757575664345,-792.7,0.00029975,7]
[384825334,1757575664372,-400.0,0.00029975,7]
[384825335,1757575664401,-400.0,0.00029975,7]
[384825336,1757575664431,-400.0,0.00029975,7]
[384825337,1757575664458,-400.0,0.00029975,7]
[384825338,1757575664486,-400.0,0.00029975,7]
[384825339,1757575664514,-400.0,0.00029975,7]
[384825340,1757575664541,-400.0,0.00029975,7]
[384825341,1757575664568,-436.97,0.00029975,7]
[384825342,1757575664596,-400.0,0.00029975,7]
[384825343,1757575664625,-400.0,0.00029975,7]
[384825344,1757575664653,-400.0,0.00029975,7]
[384825345,1757575664682,-400.0,0.00029975,7]
[384825346,1757575664711,-400.0,0.00029975,7]
[384825347,1757575664739,-400.0,0.00029975,7]
[384825348,1757575664770,-676.0,0.00029975,7]
[384825349,1757575664802,-401.68884982,0.00029975,7]
[384825350,1757575664833,-400.0,0.00029975,7]
[384825351,1757575664862,-400.0,0.00029975,7]
[384825352,1757575664891,-400.0,0.00029975,7]
[384825353,1757575664920,-634.11,0.00029975,7]
[384825354,1757575664948,-398.76004273,0.00029975,7]
[384825355,1757575664976,-400.0,0.00029975,7]
[384825356,1757575665005,-400.0,0.00029975,7]
[384825357,1757575665034,-400.0,0.00029975,7]
[384825358,1757575665064,-559.8,0.00029975,7]
[384825359,1757575665093,-400.0,0.00029975,7]
[384825360,1757575665121,-400.0,0.00029975,7]
[384825361,1757575665149,-400.0,0.00029975,7]
[384825362,1757575665402,-811.3,0.00029975,7]
[384825363,1757575665430,-400.0,0.00029975,7]
[384825364,1757575665459,-400.0,0.00029975,7]
[384825365,1757575665486,-400.0,0.00029975,7]
[384825366,1757575665513,-400.0,0.00029975,7]
[384825367,1757575665542,-872.82,0.00029975,7]
[384825368,1757575665569,-400.0,0.00029975,7]
[384825369,1757575665597,-610.73,0.00029975,7]
[384825370,1757575665626,-1321.6,0.00029975,7]
[384825371,1757575665653,-400.0,0.00029975,7]
[384825372,1757575665681,-400.0,0.00029975,7]
[384825373,1757575665708,-400.0,0.00029975,7]
[384825374,1757575665736,-400.0,0.00029975,7]
[384825375,1757575665764,-400.0,0.00029975,7]
[384825376,1757575665792,-400.0,0.00029975,7]
[384825377,1757575665820,-835.08,0.00029975,7]
[384825378,1757575665848,-540.76,0.00029975,7]
[384825379,1757575665876,-400.0,0.00029975,7]
[384825380,1757575665905,-1068.8,0.00029975,7]
[384825381,1757575665933,-400.0,0.00029975,7]
[384825382,1757575665961,-400.0,0.00029975,7]
[384825383,1757575665990,-529.45,0.00029975,7]
[384825384,1757575666018,-400.0,0.00029975,7]
[384825385,1757575666047,-400.0,0.00029975,7]
[384825386,1757575666074,-400.0,0.00029975,7]
[384825387,1757575666101,-401.51383476,0.00029975,7]
[384825388,1757575666129,-938.28,0.00029975,7]
[384825389,1757575666163,-687.64,0.00029975,7]
[384825390,1757575666192,-780.08,0.00029975,7]
[384825391,1757575666220,-400.0,0.00029975,7]
[384825392,1757575666247,-400.0,0.00029975,7]
[384825393,1757575666276,-738.18,0.00029975,7]
[384825394,1757575666304,-400.0,0.00029975,7]
[384825395,1757575666332,-407.7186604,0.00029975,7]
[384825396,1757575666359,-400.0,0.00029975,7]
[384825397,1757575666387,-400.0,0.00029975,7]
[384825398,1757575666414,-601.12,0.00029975,7]
[384825399,1757575666441,-569.58,0.00029975,7]
[384825400,1757575666468,-587.01,0.00029975,7]
[384825401,1757575666495,-945.48,0.00029975,7]
[384825402,1757575666522,-400.0,0.00029975,7]
[384825403,1757575666549,-400.0,0.00029975,7]
[384825404,1757575666576,-400.0,0.00029975,7]
[384825405,1757575666603,-544.31,0.00029975,7]
[384825406,1757575666629,-400.0,0.00029975,7]
[384825407,1757575666659,-631.21,0.00029975,7]
[384825408,1757575666687,-400.0,0.00029975,7]
[384825409,1757575666714,-852.2,0.00029975,7]
[384825410,1757575666742,-400.0,0.00029975,7]
[384825411,1757575666768,-400.0,0.00029975,7]
[384825412,1757575666796,-1037.97,0.00029975,7]
[384825413,1757575666823,-400.0,0.00029975,7]
[384825414,1757575666849,-550.32,0.00029975,7]
[384825415,1757575666877,-1592.14,0.00029975,2]
[384825416,1757575666905,-1101.83,0.00029975,7]
[384825417,1757575666933,-400.0,0.00029975,7]
[384825418,1757575666962,-400.0,0.00029975,7]
[384825419,1757575666990,-771.6,0.00029975,7]
[384825420,1757575667017,-400.0,0.00029975,7]
[384825421,1757575667047,-875.62,0.00029975,7]
[384825422,1757575667075,-400.0,0.00029975,7]
[384825423,1757575667103,-400.0,0.00029975,7]
[384825424,1757575667131,-400.0,0.00029975,7]
[384825425,1757575667158,-864.22,0.00029975,7]
[384825426,1757575667188,-400.0,0.00029975,7]
[384825427,1757575667216,-400.0,0.00029975,7]
[384825428,1757575667244,-400.0,0.00029975,7]
[384825429,1757575667274,-400.0,0.00029975,7]
[384825430,1757575667302,-400.0,0.00029975,7]
[384825431,1757575667330,-884.44,0.00029975,7]
[384825432,1757575667357,-400.0,0.00029975,7]
[384825433,1757575667386,-400.0,0.00029975,7]
[384825434,1757575667413,-987.99,0.00029975,7]
[384825435,1757575667440,-400.0,0.00029975,7]
[384825436,1757575667469,-406.21,0.00029975,7]
[384825437,1757575667497,-400.0,0.00029975,7]
[384825438,1757575667527,-500.0,0.00029975,7]
[384825439,1757575667564,-526.81653606,0.00029975,7]
[384825440,1757575667594,-400.0,0.00029975,7]
[384825441,1757575667622,-665.84,0.00029975,7]
[384825442,1757575667652,-846.03,0.00029975,7]
[384825443,1757575667680,-400.0,0.00029975,7]
[384825444,1757575667708,-400.0,0.00029975,7]
[384825445,1757575667736,-400.0,0.00029975,7]
[384825446,1757575667765,-400.0,0.00029975,7]
[384825447,1757575667793,-400.0,0.00029975,7]
[384825448,1757575667821,-507.84316422,0.00029976,10]
[384825449,1757575667850,-500.0,0.00029976,7]
[384825450,1757575667879,-500.0,0.00029976,7]
[384825451,1757575667909,-4940.2407747,0.00029977,2]
[384825452,1757575667937,-159.4617441,0.00029977,2]
[384825453,1757575667966,-151.0,0.00029977,2]
[384825454,1757575667994,-500.0,0.00029977,7]
[384825455,1757575668025,-500.0,0.00029977,7]
[384825456,1757575668058,-150.0,0.00029978,2]
[384825457,1757575668086,-150.0,0.00029978,2]
[384825458,1757575668114,-150.0,0.00029978,2]
[384825459,1757575668142,-152.20218846,0.00029978,2]
[384825460,1757575668170,-151.36614922,0.00029978,2]
[384825461,1757575668203,-151.32400911,0.00029978,2]
[384825462,1757575668231,-150.83030817,0.00029978,2]
[384825463,1757575668258,-150.0,0.00029978,2]
[384825464,1757575668287,-150.0,0.00029978,2]
[384825465,1757575668315,-152.55425204,0.00029978,2]
[384825466,1757575668344,-150.0,0.00029978,2]
[384825467,1757575668575,-500.0,0.00029978,2]
[384825468,1757575668609,-150.0,0.00029978,2]
[384825469,1757575668640,-500.0,0.00029978,2]
[384825470,1757575668670,-150.0,0.00029978,2]
[384825471,1757575668699,-500.0,0.00029978,2]
[384825472,1757575668729,-500.0,0.00029978,2]
[384825473,1757575668757,-150.0,0.00029978,2]
[384825474,1757575668787,-150.0,0.00029978,2]
[384825475,1757575668817,-150.0,0.00029978,2]
[384825476,1757575668845,-500.0,0.00029978,2]
[384825477,1757575668874,-150.0,0.00029978,2]
[384825478,1757575668903,-150.0,0.00029978,2]
[384825479,1757575668931,-150.0,0.00029978,2]
[384825480,1757575668958,-150.0,0.00029978,2]
[384825481,1757575668987,-150.0,0.00029978,2]
[384825482,1757575669016,-500.0,0.00029978,2]
[384825483,1757575669044,-150.0,0.00029978,2]
[384825484,1757575669073,-500.0,0.00029978,2]
[384825485,1757575669101,-251.76681458,0.00029978,2]
[384825486,1757575669128,-150.0,0.00029978,2]
[384825487,1757575669161,-500.0,0.00029978,2]
[384825488,1757575669193,-150.0,0.00029978,2]
[384825489,1757575669222,-500.0,0.00029978,2]
[384825490,1757575669249,-500.0,0.00029978,2]
[384825491,1757575669278,-500.0,0.00029978,2]
[384825492,1757575669307,-500.0,0.00029978,2]
[384825493,1757575669336,-500.0,0.00029978,2]
[384825494,1757575669367,-150.0,0.00029978,2]
[384825495,1757575669395,-150.0,0.00029978,2]
[384825496,1757575669424,-150.0,0.00029978,2]
[384825497,1757575669452,-150.0,0.00029978,2]
[384825498,1757575669482,-500.0,0.00029978,2]
[384825499,1757575669512,-150.0,0.00029978,2]
[384825500,1757575669539,-500.0,0.00029978,2]
[384825501,1757575669567,-150.0,0.00029978,2]
[384825502,1757575669595,-150.0,0.00029978,2]
[384825503,1757575669626,-212.65363784,0.00029978,2]
[384825504,1757575669656,-516.56712158,0.00029987,7]
[384825505,1757575669687,-500.0,0.00029987,7]
[384825506,1757575669721,-436.464,0.00029988,24]
[384825507,1757575669753,-184.446783,0.00029988,24]
[384825508,1757575669784,-500.0,0.00029989,7]
[384825509,1757575669815,-231.3767446,0.00029997,7]
[384825510,1757575669843,-234.1282137,0.00029999,2]
[384825511,1757575669872,-232.11718995,0.00029999,7]
[384825512,1757575669901,-71026.75680877,0.00029999,2]
[384825513,1757575669930,-123253.78119065,0.0003,2]
[384825514,1757575669960,-1000.0,0.0003,30]
[384825515,1757575669988,-151.74281222,0.0003,2]
[384825516,1757575670017,-587.87,0.0003,10]
[384825517,1757575670045,-976.10077399,0.0003,2]
[384825518,1757575670073,-803.09,0.00030055,2]
[384825519,1757575670101,-3563.3648598,0.00030085,2]
[384825520,1757575670128,-2580.00795913,0.0003013,2]
[384825521,1757575670155,-330.33856,0.00030136,2]
[384825522,1757575670184,-400.0,0.00030136,7]
[384825523,1757575670213,-540.23429591,0.00030137,2]
[384825524,1757575670242,-515.37529716,0.00030171,2]
[384825525,1757575670271,-212.89373682,0.00030171,2]
[384825526,1757575670300,-3563.3648598,0.00030201,2]
[384825527,1757575670327,-400.0,0.00030218,7]
[384825528,1757575670355,-407.97868379,0.00030218,7]
[384825529,1757575670383,-1413.12,0.00030218,7]
[384825530,1757575670410,-400.0,0.00030218,7]
[384825531,1757575670438,-400.0,0.00030218,7]
[384825532,1757575670465,-403.80487773,0.00030218,7]
[384825533,1757575670494,-400.0,0.00030218,7]
[384825534,1757575670524,-400.0,0.00030218,7]
[384825535,1757575670553,-400.0,0.00030218,7]
[384825536,1757575670583,-803.26,0.00030219,2]
[384825537,1757575670614,-803.26,0.00030219,2]
[384825538,1757575670644,-803.26,0.00030219,2]
[384825539,1757575670674,-687.13,0.00030219,2]
[384825540,1757575670704,-400.0,0.00030226,7]
[384825541,1757575670733,-427.68,0.00030226,7]
[384825542,1757575670763,-1194.5,0.00030226,7]
[384825543,1757575670793,-1235.0,0.00030226,7]
[384825544,1757575670822,-407.96840822,0.00030226,7]
[384825545,1757575670852,-400.0,0.00030226,7]
[384825546,1757575670882,-407.44464665,0.00030226,7]
[384825547,1757575670910,-748.55,0.00030226,7]
[384825548,1757575670939,-400.0,0.00030226,7]
[384825549,1757575670966,-277.68893214,0.00030226,7]
[384825550,1757575670994,-905.09,0.00030226,7]
[384825551,1757575671023,-400.0,0.00030226,7]
[384825552,1757575671051,-400.0,0.00030226,7]
[384825553,1757575671079,-403.87298156,0.00030226,7]
[384825554,1757575671106,-2252.81,0.00030226,7]
[384825555,1757575671134,-888.01,0.00030226,7]
[384825556,1757575671161,-406.19236523,0.00030226,7]
[384825557,1757575671190,-784.2,0.00030226,7]
[384825558,1757575671218,-580.77,0.00030226,7]
[384825559,1757575671245,-500.43,0.00030226,7]
[384825560,1757575671273,-3241.86,0.00030226,7]
[384825561,1757575671300,-400.0,0.00030226,7]
[384825562,1757575671327,-1037.61,0.00030226,7]
[384825563,1757575671355,-400.0,0.00030226,7]
[384825564,1757575671383,-455.98,0.00030226,7]
[384825565,1757575671410,-620.4,0.00030226,7]
[384825566,1757575671438,-400.0,0.00030226,7]
[384825567,1757575671466,-460.65,0.00030226,7]
[384825568,1757575671495,-1683.19,0.00030226,7]
[384825569,1757575671523,-400.0,0.00030226,7]
[384825570,1757575671550,-915.76,0.00030226,7]
[384825571,1757575671578,-531.48,0.00030226,7]
[384825572,1757575671803,-895.09,0.00030226,7]
[384825573,1757575671833,-432.61,0.00030226,7]
[384825574,1757575671863,-1306.27,0.00030226,7]
[384825575,1757575671891,-439.37,0.00030226,7]
[384825576,1757575671920,-629.3,0.00030226,7]
[384825577,1757575671948,-400.0,0.00030227,7]
[384825578,1757575671976,-400.0,0.00030227,7]
[384825579,1757575672004,-400.0,0.00030227,7]
[384825580,1757575672030,-408.78450312,0.00030227,7]
[384825581,1757575672058,-400.0,0.00030227,7]
[384825582,1757575672085,-400.0,0.00030227,7]
[384825583,1757575672111,-400.0,0.00030227,7]
[384825584,1757575672141,-400.0,0.00030227,7]
[384825585,1757575672170,-400.0,0.00030227,7]
[384825586,1757575672206,-400.0,0.00030227,7]
[384825587,1757575672244,-1104.76,0.00030227,7]
[384825588,1757575672273,-1447.23,0.00030227,7]
[384825589,1757575672302,-400.0,0.00030227,7]
[384825590,1757575672332,-405.11,0.00030227,7]
[384825591,1757575672361,-400.0,0.00030227,7]
[384825592,1757575672389,-543.1,0.00030227,7]
[384825593,1757575672416,-400.0,0.00030227,7]
[384825594,1757575672444,-803.72,0.00030227,7]
[384825595,1757575672473,-414.6,0.00030227,7]
[384825596,1757575672502,-400.0,0.00030227,7]
[384825597,1757575672530,-1722.63,0.00030227,7]
[384825598,1757575672556,-400.0,0.00030227,7]
[384825599,1757575672583,-400.0,0.00030227,7]
[384825600,1757575672610,-919.83,0.00030227,7]
[384825601,1757575672637,-1116.35,0.00030227,7]
[384825602,1757575672664,-391.68810115,0.00030227,7]
[384825603,1757575672690,-511.74,0.00030227,7]
[384825604,1757575672717,-633.02,0.00030227,7]
[384825605,1757575672745,-1147.39,0.00030227,7]
[384825606,1757575672772,-400.0,0.00030227,7]
[384825607,1757575672799,-400.0,0.00030227,7]
[384825608,1757575672826,-745.37,0.00030227,7]
[384825609,1757575672854,-416.06,0.00030227,7]
[384825610,1757575672883,-591.15,0.00030227,7]
[384825611,1757575672911,-403.61388344,0.00030227,7]
[384825612,1757575672938,-637.71,0.00030227,7]
[384825613,1757575672967,-527.71,0.00030227,7]
[384825614,1757575672995,-405.29922639,0.00030227,7]
[384825615,1757575673023,-402.14,0.00030227,7]
[384825616,1757575673050,-400.0,0.00030227,7]
[384825617,1757575673078,-400.0,0.00030227,7]
[384825618,1757575673106,-400.0,0.00030227,7]
[384825619,1757575673133,-1965.14,0.00030227,7]
[384825620,1757575673160,-400.0,0.00030227,7]
[384825621,1757575673190,-880.29,0.00030227,7]
[384825622,1757575673218,-400.0,0.00030227,7]
[384825623,1757575673245,-400.0,0.00030227,7]
[384825624,1757575673273,-400.0,0.00030227,7]
[384825625,1757575673303,-1508.51,0.00030227,7]
[384825626,1757575673334,-400.0,0.00030227,7]
[384825627,1757575673362,-400.0,0.00030227,7]
[384825628,1757575673393,-528.8,0.00030227,7]
[384825629,1757575673426,-479.0,0.00030227,7]
[384825630,1757575673457,-400.0,0.00030227,7]
[384825631,1757575673488,-1282.29,0.00030227,7]
[384825632,1757575673519,-400.0,0.00030227,7]
[384825633,1757575673549,-400.0,0.00030227,7]
[384825634,1757575673578,-400.0,0.00030227,7]
[384825635,1757575673606,-821.97,0.00030227,7]
[384825636,1757575673634,-1114.56,0.00030227,7]
[384825637,1757575673662,-405.08715024,0.00030227,7]
[384825638,1757575673691,-573.56,0.00030227,7]
[384825639,1757575673719,-438.1082061,0.00030227,7]
[384825640,1757575673748,-400.0,0.00030227,7]
[384825641,1757575673778,-400.0,0.00030227,7]
[384825642,1757575673809,-877.45,0.00030227,7]
[384825643,1757575673839,-400.66022558,0.00030227,7]
[384825644,1757575673871,-1155.21,0.00030227,7]
[384825645,1757575673903,-400.0,0.00030227,7]
[384825646,1757575673931,-400.0,0.00030227,7]
[384825647,1757575673960,-400.0,0.00030227,7]
[384825648,1757575673989,-400.0,0.00030227,7]
[384825649,1757575674018,-165.57163359,0.00030227,7]
[384825650,1757575674047,-406.1207154,0.00030227,7]
[384825651,1757575674076,-878.96,0.00030227,7]
[384825652,1757575674105,-400.0,0.00030227,7]
[384825653,1757575674132,-400.0,0.00030227,7]
[384825654,1757575674161,-400.0,0.00030227,7]
[384825655,1757575674192,-400.0,0.00030227,7]
[384825656,1757575674220,-407.79350876,0.00030227,7]
[384825657,1757575674247,-862.6,0.00030227,7]
[384825658,1757575674275,-400.0,0.00030227,7]
[384825659,1757575674303,-400.0,0.00030227,7]
[384825660,1757575674332,-400.0,0.00030227,7]
[384825661,1757575674362,-400.0,0.00030227,7]
[384825662,1757575674390,-3820.23,0.00030227,7]
[384825663,1757575674423,-738.18,0.00030227,7]
[384825664,1757575674452,-1200.54,0.00030227,7]
[384825665,1757575674479,-400.0,0.00030227,7]
[384825666,1757575674507,-400.0,0.00030227,7]
[384825667,1757575674535,-400.0,0.00030227,7]
[384825668,1757575674564,-3397.75,0.00030227,7]
[384825669,1757575674593,-467.12,0.00030227,7]
[384825670,1757575674623,-911.45,0.00030227,7]
[384825671,1757575674652,-681.14,0.00030227,7]
[384825672,1757575674682,-510.39149198,0.00030227,7]
[384825673,1757575674711,-400.0,0.00030227,7]
[384825674,1757575674742,-483.92,0.00030227,7]
[384825675,1757575675001,-400.0,0.00030227,7]
[384825676,1757575675036,-4167.5,0.00030227,7]
[384825677,1757575675066,-400.0,0.00030227,7]
[384825678,1757575675095,-400.0,0.00030227,7]
[384825679,1757575675124,-400.0,0.00030227,7]
[384825680,1757575675154,-418.53413261,0.00030227,7]
[384825681,1757575675183,-418.91510702,0.00030227,7]
[384825682,1757575675214,-420.44721016,0.00030227,7]
[384825683,1757575675241,-1403.9,0.00030227,7]
[384825684,1757575675268,-400.0,0.00030227,7]
[384825685,1757575675296,-400.0,0.00030227,7]
[384825686,1757575675322,-400.0,0.00030227,7]
[384825687,1757575675350,-400.0,0.00030227,7]
[384825688,1757575675378,-403.85229087,0.00030227,7]
[384825689,1757575675406,-479.79,0.00030227,7]
[384825690,1757575675433,-400.0,0.00030227,7]
[384825691,1757575675461,-400.0,0.00030227,7]
[384825692,1757575675489,-400.0,0.00030227,7]
[384825693,1757575675517,-885.98,0.00030227,7]
[384825694,1757575675545,-400.0,0.00030227,7]
[384825695,1757575675575,-405.27245445,0.00030227,7]
[384825696,1757575675603,-706.89,0.00030227,7]
[384825697,1757575675630,-491.04,0.00030227,7]
[384825698,1757575675658,-2173.6,0.00030227,7]
[384825699,1757575675687,-772.03,0.00030227,7]
[384825700,1757575675715,-517.7,0.00030227,7]
[384825701,1757575675747,-405.83329179,0.00030227,7]
[384825702,1757575675775,-520.15,0.00030227,7]
[384825703,1757575675803,-400.0,0.00030227,7]
[384825704,1757575675835,-1283.05,0.00030227,7]
[384825705,1757575675864,-406.96417518,0.00030227,7]
[384825706,1757575675895,-673.58,0.00030227,7]
[384825707,1757575675924,-400.0,0.00030227,7]
[384825708,1757575675953,-400.0,0.00030227,7]
[384825709,1757575675981,-400.0,0.00030227,7]
[384825710,1757575676011,-548.22,0.00030227,7]
[384825711,1757575676039,-684.87,0.00030227,7]
[384825712,1757575676069,-1188.33,0.00030227,7]
[384825713,1757575676096,-681.57,0.00030227,7]
[384825714,1757575676130,-264.77266298,0.00030227,7]
[384825715,1757575676157,-400.0,0.00030227,7]
[384825716,1757575676185,-959.54,0.00030228,7]
[384825717,1757575676213,-400.0,0.00030228,7]
[384825718,1757575676240,-400.0,0.00030228,7]
[384825719,1757575676267,-549.41,0.00030228,7]
[384825720,1757575676295,-400.0,0.00030228,7]
[384825721,1757575676323,-601.3,0.00030228,7]
[384825722,1757575676352,-767.77,0.00030228,7]
[384825723,1757575676380,-631.18,0.00030228,7]
[384825724,1757575676409,-1249.38,0.00030228,7]
[384825725,1757575676437,-400.0,0.00030228,7]
[384825726,1757575676466,-697.45,0.00030228,7]
[384825727,1757575676498,-2239.2,0.00030228,7]
[384825728,1757575676527,-1300.89,0.00030228,7]
[384825729,1757575676555,-400.0,0.00030228,7]
[384825730,1757575676584,-526.9,0.00030228,7]
[384825731,1757575676611,-400.0,0.00030228,7]
[384825732,1757575676639,-666.32,0.00030228,7]
[384825733,1757575676666,-400.0,0.00030229,7]
[384825734,1757575676695,-400.0,0.00030229,7]
[384825735,1757575676724,-498.60213686,0.00030229,7]
[384825736,1757575676753,-400.0,0.00030229,7]
[384825737,1757575676781,-708.12,0.00030229,7]
[384825738,1757575676810,-400.0,0.00030229,7]